[Event "Titled Tuesday Blitz July 4 Early 2023"]
[White "Sreyas Payyappat"]
[Black "Winkels, Marcel"]
[WhiteFideId "46674969"]
[BlackFideId "1003887"]
[WhiteElo "2533"]
[BlackElo "2052"]
[Result "1-0"]
[Round "1"]
[TimeControl "180+2"]
[Date "2023.07.04"]
[WhiteClock "0:01:20"]
[BlackClock "0:00:00"]
[Board "227"]

1. e4 {[%clk 0:03:00]}  c5 {[%clk 0:02:58]} 2. Nf3 {[%clk 0:03:00]}  d6 {[%clk 0:02:58]} 3. d4 {[%clk 0:02:59]}  cxd4 {[%clk 0:02:59]} 4. Nxd4 {[%clk 0:03:00]}  Nf6 {[%clk 0:02:59]} 5. Nc3 {[%clk 0:03:00]}  a6 {[%clk 0:02:59]} 6. h4 {[%clk 0:02:58]}  Nc6 {[%clk 0:02:52]} 7. h5 {[%clk 0:02:54]}  h6 {[%clk 0:02:51]} 8. f3 {[%clk 0:02:52]}  Nxd4 {[%clk 0:02:43]} 9. Qxd4 {[%clk 0:02:51]}  e5 {[%clk 0:02:43]} 10. Qd1 {[%clk 0:02:50]}  Be6 {[%clk 0:02:43]} 11. Be3 {[%clk 0:02:50]}  Qc7 {[%clk 0:02:30]} 12. Qd2 {[%clk 0:02:47]}  O-O-O {[%clk 0:02:27]} 13. Na4 {[%clk 0:02:44]}  Nd7 {[%clk 0:02:06]} 14. c4 {[%clk 0:02:36]}  Nc5 {[%clk 0:01:55]} 15. Nc3 {[%clk 0:02:33]}  Be7 {[%clk 0:01:43]} 16. Rc1 {[%clk 0:02:26]}  Kb8 {[%clk 0:01:31]} 17. b4 {[%clk 0:02:14]}  Nd7 {[%clk 0:01:30]} 18. Nd5 {[%clk 0:02:14]}  Bxd5 {[%clk 0:01:23]} 19. cxd5 {[%clk 0:02:14]}  Nc5 {[%clk 0:01:00]} 20. bxc5 {[%clk 0:02:13]}  dxc5 {[%clk 0:00:59]} 21. Be2 {[%clk 0:02:07]}  f5 {[%clk 0:00:44]} 22. exf5 {[%clk 0:02:02]}  Rhf8 {[%clk 0:00:35]} 23. g4 {[%clk 0:01:54]}  Rc8 {[%clk 0:00:21]} 24. O-O {[%clk 0:01:50]}  Bd6 {[%clk 0:00:18]} 25. f4 {[%clk 0:01:48]}  Qe7 {[%clk 0:00:16]} 26. fxe5 {[%clk 0:01:46]}  Bxe5 {[%clk 0:00:16]} 27. Bf4 {[%clk 0:01:46]}  Bxf4 {[%clk 0:00:15]} 28. Qxf4+ {[%clk 0:01:47]}  Ka8 {[%clk 0:00:13]} 29. Bf3 {[%clk 0:01:45]}  Rfd8 {[%clk 0:00:12]} 30. Rfd1 {[%clk 0:01:42]}  Qh4 {[%clk 0:00:08]} 31. d6 {[%clk 0:01:39]}  c4 {[%clk 0:00:07]} 32. Rb1 {[%clk 0:01:35]}  Rd7 {[%clk 0:00:05]} 33. Rxb7 {[%clk 0:01:26]}  Rxb7 {[%clk 0:00:04]} 34. d7 {[%clk 0:01:26]}  Rd8 {[%clk 0:00:04]} 35. Qe4 {[%clk 0:01:21]}  Rb8 {[%clk 0:00:02]} 36. d8=Q {[%clk 0:01:20]}  Qg3+ {[%clk 0:00:00]} 37. Bg2 {[%clk 0:01:20]} 1-0


[Site "https://www.chess.com"]

[Event "Titled Tuesday Blitz July 4 Early 2023"]
[White "Demin, Vladimir"]
[Black "Goughfather"]
[WhiteFideId "4167457"]
[WhiteElo "2532"]
[BlackElo "2033"]
[Result "1-0"]
[Round "1"]
[TimeControl "180+2"]
[Date "2023.07.04"]
[WhiteClock "0:01:50"]
[BlackClock "0:00:05"]
[Board "229"]

1. d4 {[%clk 0:02:59]}  d5 {[%clk 0:02:59]} 2. Nc3 {[%clk 0:02:58]}  c6 {[%clk 0:02:59]} 3. Bf4 {[%clk 0:02:58]}  Nf6 {[%clk 0:02:43]} 4. e3 {[%clk 0:02:56]}  Bf5 {[%clk 0:02:41]} 5. f3 {[%clk 0:02:56]}  e6 {[%clk 0:02:36]} 6. g4 {[%clk 0:02:55]}  Bg6 {[%clk 0:02:36]} 7. h4 {[%clk 0:02:56]}  h5 {[%clk 0:02:29]} 8. g5 {[%clk 0:02:56]}  Ng8 {[%clk 0:02:21]} 9. Bd3 {[%clk 0:02:56]}  Bxd3 {[%clk 0:02:20]} 10. Qxd3 {[%clk 0:02:57]}  g6 {[%clk 0:02:19]} 11. O-O-O {[%clk 0:02:55]}  Bd6 {[%clk 0:02:12]} 12. Nge2 {[%clk 0:02:55]}  Qc7 {[%clk 0:02:10]} 13. Kb1 {[%clk 0:02:51]}  Ne7 {[%clk 0:02:07]} 14. Bxd6 {[%clk 0:02:49]}  Qxd6 {[%clk 0:02:07]} 15. e4 {[%clk 0:02:50]}  Nd7 {[%clk 0:02:01]} 16. Na4 {[%clk 0:02:48]}  Qb4 {[%clk 0:01:59]} 17. Qb3 {[%clk 0:02:41]}  Qxb3 {[%clk 0:01:53]} 18. axb3 {[%clk 0:02:42]}  O-O {[%clk 0:01:53]} 19. c4 {[%clk 0:02:38]}  Rfc8 {[%clk 0:01:40]} 20. Nac3 {[%clk 0:02:37]}  Nb6 {[%clk 0:01:37]} 21. c5 {[%clk 0:02:31]}  Nd7 {[%clk 0:01:35]} 22. b4 {[%clk 0:02:31]}  b6 {[%clk 0:01:30]} 23. Kc2 {[%clk 0:02:19]}  a5 {[%clk 0:01:26]} 24. bxa5 {[%clk 0:02:20]}  bxc5 {[%clk 0:01:22]} 25. Ra1 {[%clk 0:02:21]}  cxd4 {[%clk 0:01:17]} 26. Nxd4 {[%clk 0:02:22]}  e5 {[%clk 0:01:17]} 27. Nb3 {[%clk 0:02:16]}  d4 {[%clk 0:01:12]} 28. Na4 {[%clk 0:02:16]}  c5 {[%clk 0:01:09]} 29. Nb6 {[%clk 0:02:15]}  Nxb6 {[%clk 0:01:03]} 30. axb6 {[%clk 0:02:16]}  Rab8 {[%clk 0:01:04]} 31. Ra7 {[%clk 0:02:12]}  Nc6 {[%clk 0:00:59]} 32. Rc7 {[%clk 0:02:12]}  Nb4+ {[%clk 0:00:54]} 33. Kd2 {[%clk 0:02:11]}  Rxc7 {[%clk 0:00:50]} 34. bxc7 {[%clk 0:02:11]}  Rc8 {[%clk 0:00:50]} 35. Nxc5 {[%clk 0:02:09]}  Rxc7 {[%clk 0:00:50]} 36. Rc1 {[%clk 0:02:10]}  Rc6 {[%clk 0:00:30]} 37. b3 {[%clk 0:02:08]}  Na2 {[%clk 0:00:27]} 38. Rc4 {[%clk 0:02:06]}  Nc3 {[%clk 0:00:23]} 39. Nd7 {[%clk 0:02:03]}  Re6 {[%clk 0:00:13]} 40. Rc8+ {[%clk 0:01:58]}  Kg7 {[%clk 0:00:12]} 41. Nf6 {[%clk 0:01:57]}  Rxf6 {[%clk 0:00:09]} 42. gxf6+ {[%clk 0:01:58]}  Kxf6 {[%clk 0:00:10]} 43. Kd3 {[%clk 0:01:54]}  g5 {[%clk 0:00:09]} 44. Rh8 {[%clk 0:01:50]}  Kg6 {[%clk 0:00:05]} 45. Rg8+ {[%clk 0:01:50]} 1-0


[Site "https://www.chess.com"]

[Event "Titled Tuesday Blitz July 4 Early 2023"]
[White "Vargas, Mauricio"]
[Black "Arencibia Monduy, Antonio"]
[WhiteFideId "4404572"]
[BlackFideId "3507939"]
[WhiteElo "1873"]
[BlackElo "2531"]
[Result "0-1"]
[Round "1"]
[TimeControl "180+2"]
[Date "2023.07.04"]
[WhiteClock "0:00:00"]
[BlackClock "0:00:09"]
[Board "232"]

1. e4 {[%clk 0:02:54]}  e6 {[%clk 0:02:57]} 2. f4 {[%clk 0:02:53]}  d5 {[%clk 0:02:57]} 3. e5 {[%clk 0:02:54]}  c5 {[%clk 0:02:57]} 4. Nf3 {[%clk 0:02:55]}  Nc6 {[%clk 0:02:57]} 5. Bb5 {[%clk 0:02:55]}  Bd7 {[%clk 0:02:53]} 6. Bxc6 {[%clk 0:02:56]}  Bxc6 {[%clk 0:02:53]} 7. O-O {[%clk 0:02:57]}  Ne7 {[%clk 0:02:48]} 8. d3 {[%clk 0:02:57]}  Nf5 {[%clk 0:02:42]} 9. c3 {[%clk 0:02:57]}  Be7 {[%clk 0:02:34]} 10. Qe1 {[%clk 0:02:57]}  h5 {[%clk 0:02:18]} 11. Na3 {[%clk 0:02:37]}  d4 {[%clk 0:01:44]} 12. Nc4 {[%clk 0:02:35]}  b5 {[%clk 0:01:32]} 13. Ncd2 {[%clk 0:02:34]}  dxc3 {[%clk 0:01:29]} 14. bxc3 {[%clk 0:02:31]}  Qxd3 {[%clk 0:01:27]} 15. Nb3 {[%clk 0:02:20]}  Rd8 {[%clk 0:01:09]} 16. Ba3 {[%clk 0:02:06]}  Qe3+ {[%clk 0:00:38]} 17. Kh1 {[%clk 0:01:55]}  h4 {[%clk 0:00:36]} 18. Qxe3 {[%clk 0:01:47]}  Nxe3 {[%clk 0:00:36]} 19. Rf2 {[%clk 0:01:42]}  b4 {[%clk 0:00:26]} 20. cxb4 {[%clk 0:01:41]}  cxb4 {[%clk 0:00:26]} 21. Bb2 {[%clk 0:01:34]}  Nd1 {[%clk 0:00:26]} 22. Rc2 {[%clk 0:01:02]}  Be4 {[%clk 0:00:17]} 23. Re2 {[%clk 0:00:41]}  h3 {[%clk 0:00:17]} 24. Rxe4 {[%clk 0:00:38]}  Nf2+ {[%clk 0:00:16]} 25. Kg1 {[%clk 0:00:35]}  Nxe4 {[%clk 0:00:17]} 26. Rc1 {[%clk 0:00:28]}  hxg2 {[%clk 0:00:16]} 27. Kxg2 {[%clk 0:00:28]}  O-O {[%clk 0:00:15]} 28. Rc7 {[%clk 0:00:24]}  Rfe8 {[%clk 0:00:15]} 29. Bd4 {[%clk 0:00:20]}  a6 {[%clk 0:00:11]} 30. Bb6 {[%clk 0:00:19]}  Rc8 {[%clk 0:00:11]} 31. Ra7 {[%clk 0:00:14]}  Rc2+ {[%clk 0:00:11]} 32. Kh3 {[%clk 0:00:08]}  Rxa2 {[%clk 0:00:10]} 33. Na5 {[%clk 0:00:00]}  Ra3 {[%clk 0:00:09]} 0-1


[Site "https://www.chess.com"]

[Event "Titled Tuesday Blitz July 4 Early 2023"]
[White "Mamedov, Rauf"]
[Black "Borgaonkar Akshay"]
[WhiteFideId "13401653"]
[BlackFideId "25639110"]
[WhiteElo "3032"]
[BlackElo "2618"]
[Result "1-0"]
[Round "2"]
[TimeControl "180+2"]
[Date "2023.07.04"]
[WhiteClock "0:00:51"]
[BlackClock "0:00:01"]
[Board "8"]

1. e4 {[%clk 0:03:00]}  Nc6 {[%clk 0:02:57]} 2. Nf3 {[%clk 0:03:00]}  d5 {[%clk 0:02:58]} 3. exd5 {[%clk 0:02:59]}  Qxd5 {[%clk 0:02:59]} 4. Nc3 {[%clk 0:03:00]}  Qh5 {[%clk 0:02:59]} 5. Be2 {[%clk 0:02:59]}  Bg4 {[%clk 0:02:59]} 6. h3 {[%clk 0:02:58]}  e5 {[%clk 0:02:42]} 7. O-O {[%clk 0:02:58]}  Bd7 {[%clk 0:02:36]} 8. d4 {[%clk 0:02:57]}  exd4 {[%clk 0:02:32]} 9. Nxd4 {[%clk 0:02:57]}  Qg6 {[%clk 0:02:31]} 10. Bh5 {[%clk 0:02:45]}  Qf6 {[%clk 0:02:17]} 11. Nf3 {[%clk 0:02:45]}  Qd6 {[%clk 0:01:59]} 12. Qe2+ {[%clk 0:02:32]}  Qe7 {[%clk 0:01:54]} 13. Qc4 {[%clk 0:02:32]}  g6 {[%clk 0:01:42]} 14. Bg5 {[%clk 0:02:29]}  Qc5 {[%clk 0:01:33]} 15. Rfe1+ {[%clk 0:02:20]}  Be6 {[%clk 0:01:33]} 16. Rxe6+ {[%clk 0:02:16]}  fxe6 {[%clk 0:01:33]} 17. Qxe6+ {[%clk 0:02:16]}  Be7 {[%clk 0:01:27]} 18. Ne4 {[%clk 0:02:03]}  Qb6 {[%clk 0:00:55]} 19. Re1 {[%clk 0:01:37]}  Rd8 {[%clk 0:00:19]} 20. Ne5 {[%clk 0:01:07]}  Nxe5 {[%clk 0:00:03]} 21. Qxe5 {[%clk 0:01:06]}  gxh5 {[%clk 0:00:02]} 22. Qxh8 {[%clk 0:01:04]}  Kf7 {[%clk 0:00:01]} 23. Qxh7+ {[%clk 0:01:04]}  Kf8 {[%clk 0:00:02]} 24. Bxe7+ {[%clk 0:01:01]}  Nxe7 {[%clk 0:00:02]} 25. Ng5 {[%clk 0:00:56]}  Qf6 {[%clk 0:00:01]} 26. Ne6+ {[%clk 0:00:54]}  Ke8 {[%clk 0:00:01]} 27. Nxd8 {[%clk 0:00:53]}  Kxd8 {[%clk 0:00:01]} 28. Qxh5 {[%clk 0:00:52]}  Nf5 {[%clk 0:00:01]} 29. Qe8# {[%clk 0:00:51]} 1-0


[Site "https://www.chess.com"]

[Event "Titled Tuesday Blitz July 4 Early 2023"]
[White "Domingo Nunez, Alejandro"]
[Black "Madaminov, Mukhiddin"]
[WhiteFideId "22245561"]
[BlackFideId "14210703"]
[WhiteElo "2617"]
[BlackElo "3031"]
[Result "0-1"]
[Round "2"]
[TimeControl "180+2"]
[Date "2023.07.04"]
[WhiteClock "0:00:00"]
[BlackClock "0:00:06"]
[Board "9"]

1. Nf3 {[%clk 0:03:00]}  d5 {[%clk 0:02:56]} 2. g3 {[%clk 0:03:01]}  Bg4 {[%clk 0:02:55]} 3. Bg2 {[%clk 0:03:01]}  Nd7 {[%clk 0:02:56]} 4. d4 {[%clk 0:03:01]}  c6 {[%clk 0:02:54]} 5. O-O {[%clk 0:03:01]}  e6 {[%clk 0:02:54]} 6. Qe1 {[%clk 0:03:01]}  Ngf6 {[%clk 0:02:53]} 7. Nfd2 {[%clk 0:03:01]}  Bf5 {[%clk 0:02:42]} 8. c4 {[%clk 0:02:52]}  Qb6 {[%clk 0:02:41]} 9. c5 {[%clk 0:02:50]}  Qb4 {[%clk 0:02:40]} 10. Nf3 {[%clk 0:02:34]}  Qxe1 {[%clk 0:02:40]} 11. Rxe1 {[%clk 0:02:35]}  b6 {[%clk 0:02:40]} 12. cxb6 {[%clk 0:02:32]}  axb6 {[%clk 0:02:41]} 13. Nc3 {[%clk 0:02:32]}  h6 {[%clk 0:02:37]} 14. Bf4 {[%clk 0:02:29]}  Bb4 {[%clk 0:02:33]} 15. Rec1 {[%clk 0:02:28]}  Ke7 {[%clk 0:02:17]} 16. a3 {[%clk 0:02:23]}  Bd6 {[%clk 0:02:16]} 17. b4 {[%clk 0:02:16]}  g5 {[%clk 0:02:14]} 18. Bxd6+ {[%clk 0:02:07]}  Kxd6 {[%clk 0:02:15]} 19. Nd2 {[%clk 0:02:07]}  Rhc8 {[%clk 0:02:00]} 20. e4 {[%clk 0:02:07]}  dxe4 {[%clk 0:02:00]} 21. Ncxe4+ {[%clk 0:02:07]}  Nxe4 {[%clk 0:02:01]} 22. Bxe4 {[%clk 0:02:05]}  Bxe4 {[%clk 0:01:51]} 23. Nxe4+ {[%clk 0:02:06]}  Ke7 {[%clk 0:01:51]} 24. Rc3 {[%clk 0:02:04]}  f5 {[%clk 0:01:45]} 25. Nd2 {[%clk 0:02:03]}  Nf6 {[%clk 0:01:41]} 26. Rac1 {[%clk 0:02:02]}  Nd5 {[%clk 0:01:41]} 27. Rxc6 {[%clk 0:01:52]}  Rxc6 {[%clk 0:01:42]} 28. Rxc6 {[%clk 0:01:52]}  Rxa3 {[%clk 0:01:43]} 29. Nc4 {[%clk 0:01:51]}  Rc3 {[%clk 0:01:18]} 30. b5 {[%clk 0:01:50]}  Kd8 {[%clk 0:01:04]} 31. Rxe6 {[%clk 0:01:15]}  Kc7 {[%clk 0:00:40]} 32. Rc6+ {[%clk 0:01:14]}  Kb8 {[%clk 0:00:34]} 33. Kg2 {[%clk 0:01:04]}  Ka7 {[%clk 0:00:25]} 34. Rd6 {[%clk 0:00:24]}  Nb4 {[%clk 0:00:24]} 35. Rd7+ {[%clk 0:00:21]}  Kb8 {[%clk 0:00:23]} 36. Nxb6 {[%clk 0:00:21]}  Nd3 {[%clk 0:00:23]} 37. Nd5 {[%clk 0:00:19]}  Rc2 {[%clk 0:00:22]} 38. b6 {[%clk 0:00:19]}  Rxf2+ {[%clk 0:00:22]} 39. Kg1 {[%clk 0:00:19]}  Rc2 {[%clk 0:00:18]} 40. Rc7 {[%clk 0:00:14]}  Rb2 {[%clk 0:00:16]} 41. Rc6 {[%clk 0:00:11]}  Ne1 {[%clk 0:00:16]} 42. Rxh6 {[%clk 0:00:02]}  Nf3+ {[%clk 0:00:16]} 43. Kf1 {[%clk 0:00:03]}  Nxh2+ {[%clk 0:00:17]} 44. Ke1 {[%clk 0:00:03]}  Nf3+ {[%clk 0:00:18]} 45. Kd1 {[%clk 0:00:03]}  Rd2+ {[%clk 0:00:17]} 46. Kc1 {[%clk 0:00:04]}  Rxd4 {[%clk 0:00:18]} 47. Rd6 {[%clk 0:00:03]}  g4 {[%clk 0:00:17]} 48. Rd8+ {[%clk 0:00:02]}  Kb7 {[%clk 0:00:18]} 49. Rd7+ {[%clk 0:00:01]}  Kc6 {[%clk 0:00:15]} 50. b7 {[%clk 0:00:02]}  Kxd7 {[%clk 0:00:14]} 51. b8=Q {[%clk 0:00:02]}  Rxd5 {[%clk 0:00:14]} 52. Qb7+ {[%clk 0:00:02]}  Ke6 {[%clk 0:00:15]} 53. Qc6+ {[%clk 0:00:02]}  Ke5 {[%clk 0:00:15]} 54. Qc3+ {[%clk 0:00:02]}  Ke4 {[%clk 0:00:16]} 55. Qc4+ {[%clk 0:00:03]}  Rd4 {[%clk 0:00:13]} 56. Qe2+ {[%clk 0:00:03]}  Kd5 {[%clk 0:00:13]} 57. Qb5+ {[%clk 0:00:04]}  Ke6 {[%clk 0:00:13]} 58. Qc6+ {[%clk 0:00:04]}  Rd6 {[%clk 0:00:13]} 59. Qc8+ {[%clk 0:00:04]}  Ke5 {[%clk 0:00:13]} 60. Qc5+ {[%clk 0:00:04]}  Rd5 {[%clk 0:00:14]} 61. Qc3+ {[%clk 0:00:03]}  Ke4 {[%clk 0:00:13]} 62. Qc4+ {[%clk 0:00:03]}  Nd4 {[%clk 0:00:14]} 63. Qf1 {[%clk 0:00:03]}  Rc5+ {[%clk 0:00:11]} 64. Kd2 {[%clk 0:00:04]}  Rc2+ {[%clk 0:00:11]} 65. Kd1 {[%clk 0:00:04]}  Re2 {[%clk 0:00:08]} 66. Qf4+ {[%clk 0:00:04]}  Kd5 {[%clk 0:00:08]} 67. Qg5 {[%clk 0:00:03]}  Kc4 {[%clk 0:00:08]} 68. Kc1 {[%clk 0:00:02]}  Rf2 {[%clk 0:00:07]} 69. Qe3 {[%clk 0:00:00]}  Rf3 {[%clk 0:00:06]} 0-1


[Site "https://www.chess.com"]

[Event "Titled Tuesday Blitz July 4 Early 2023"]
[White "Ozdemir, Serhan Berat"]
[Black "Deac, Bogdan-Daniel"]
[WhiteFideId "6374611"]
[BlackFideId "1226380"]
[WhiteElo "2614"]
[BlackElo "3014"]
[Result "1/2-1/2"]
[Round "2"]
[TimeControl "180+2"]
[Date "2023.07.04"]
[WhiteClock "0:00:05"]
[BlackClock "0:00:07"]
[Board "11"]

1. e4 {[%clk 0:03:00]}  Nf6 {[%clk 0:02:52]} 2. Nc3 {[%clk 0:02:58]}  d5 {[%clk 0:02:52]} 3. exd5 {[%clk 0:02:59]}  Nxd5 {[%clk 0:02:52]} 4. Bc4 {[%clk 0:03:00]}  Nb6 {[%clk 0:02:50]} 5. Bb3 {[%clk 0:02:59]}  Nc6 {[%clk 0:02:51]} 6. Nf3 {[%clk 0:02:58]}  Na5 {[%clk 0:02:38]} 7. d4 {[%clk 0:02:45]}  Nxb3 {[%clk 0:02:36]} 8. axb3 {[%clk 0:02:46]}  g6 {[%clk 0:02:36]} 9. h3 {[%clk 0:02:32]}  Bg7 {[%clk 0:02:35]} 10. O-O {[%clk 0:02:29]}  O-O {[%clk 0:02:33]} 11. Re1 {[%clk 0:02:13]}  h6 {[%clk 0:02:27]} 12. Be3 {[%clk 0:01:53]}  Nd7 {[%clk 0:02:15]} 13. Qd2 {[%clk 0:01:48]}  Kh7 {[%clk 0:02:14]} 14. Rad1 {[%clk 0:01:40]}  Nf6 {[%clk 0:02:09]} 15. d5 {[%clk 0:01:36]}  Bd7 {[%clk 0:02:01]} 16. Bc5 {[%clk 0:01:13]}  Re8 {[%clk 0:01:58]} 17. Ne5 {[%clk 0:01:10]}  Kg8 {[%clk 0:01:58]} 18. Be3 {[%clk 0:01:06]}  h5 {[%clk 0:01:55]} 19. Bh6 {[%clk 0:01:01]}  Bf5 {[%clk 0:01:50]} 20. Bxg7 {[%clk 0:00:57]}  Kxg7 {[%clk 0:01:50]} 21. Re2 {[%clk 0:00:55]}  Qd6 {[%clk 0:01:44]} 22. Qd4 {[%clk 0:00:46]}  Kg8 {[%clk 0:00:50]} 23. g4 {[%clk 0:00:29]}  Bc8 {[%clk 0:00:39]} 24. Nb5 {[%clk 0:00:21]}  Qd8 {[%clk 0:00:36]} 25. Qf4 {[%clk 0:00:15]}  a6 {[%clk 0:00:27]} 26. Nc3 {[%clk 0:00:14]}  Rf8 {[%clk 0:00:25]} 27. f3 {[%clk 0:00:10]}  Qd6 {[%clk 0:00:22]} 28. Kg2 {[%clk 0:00:09]}  b5 {[%clk 0:00:22]} 29. Qh6 {[%clk 0:00:04]}  b4 {[%clk 0:00:19]} 30. Na4 {[%clk 0:00:03]}  Bb7 {[%clk 0:00:11]} 31. Rdd2 {[%clk 0:00:02]}  Bxd5 {[%clk 0:00:09]} 32. c4 {[%clk 0:00:02]}  bxc3 {[%clk 0:00:09]} 33. bxc3 {[%clk 0:00:02]}  Qa3 {[%clk 0:00:05]} 34. c4 {[%clk 0:00:02]}  Bb7 {[%clk 0:00:04]} 35. Nc3 {[%clk 0:00:01]}  Rad8 {[%clk 0:00:04]} 36. Nd5 {[%clk 0:00:01]}  Bxd5 {[%clk 0:00:04]} 37. cxd5 {[%clk 0:00:02]}  Rxd5 {[%clk 0:00:03]} 38. Rxd5 {[%clk 0:00:02]}  Nxd5 {[%clk 0:00:04]} 39. Nxg6 {[%clk 0:00:02]}  fxg6 {[%clk 0:00:04]} 40. Qxg6+ {[%clk 0:00:03]}  Kh8 {[%clk 0:00:04]} 41. Qh6+ {[%clk 0:00:04]}  Kg8 {[%clk 0:00:04]} 42. Qg6+ {[%clk 0:00:04]}  Kh8 {[%clk 0:00:05]} 43. Qxh5+ {[%clk 0:00:05]}  Kg7 {[%clk 0:00:05]} 44. Qxd5 {[%clk 0:00:05]}  Qd6 {[%clk 0:00:06]} 45. Qg5+ {[%clk 0:00:05]}  Kf7 {[%clk 0:00:06]} 46. Qh5+ {[%clk 0:00:05]}  Kg7 {[%clk 0:00:06]} 47. Qg5+ {[%clk 0:00:05]}  Kf7 {[%clk 0:00:06]} 48. Qh5+ {[%clk 0:00:05]}  Kg7 {[%clk 0:00:07]} 49. Qg5+ {[%clk 0:00:05]} 1/2-1/2


[Site "https://www.chess.com"]

[Event "Titled Tuesday Blitz July 4 Early 2023"]
[White "Akhmedinov, Satbek"]
[Black "Pranav, V"]
[WhiteFideId "13714287"]
[BlackFideId "25060783"]
[WhiteElo "2612"]
[BlackElo "3003"]
[Result "1/2-1/2"]
[Round "2"]
[TimeControl "180+2"]
[Date "2023.07.04"]
[WhiteClock "0:00:16"]
[BlackClock "0:00:03"]
[Board "12"]

1. e4 {[%clk 0:03:00]}  c5 {[%clk 0:03:00]} 2. Nf3 {[%clk 0:03:01]}  Nc6 {[%clk 0:03:00]} 3. Bb5 {[%clk 0:03:01]}  g6 {[%clk 0:03:00]} 4. Bxc6 {[%clk 0:03:01]}  dxc6 {[%clk 0:03:00]} 5. d3 {[%clk 0:03:02]}  Bg7 {[%clk 0:03:00]} 6. h3 {[%clk 0:03:03]}  e5 {[%clk 0:03:01]} 7. Be3 {[%clk 0:03:02]}  Qe7 {[%clk 0:03:01]} 8. a4 {[%clk 0:03:00]}  Nf6 {[%clk 0:02:57]} 9. Nbd2 {[%clk 0:02:58]}  O-O {[%clk 0:02:56]} 10. Nc4 {[%clk 0:02:52]}  Nd7 {[%clk 0:02:56]} 11. Qd2 {[%clk 0:02:53]}  b6 {[%clk 0:02:53]} 12. h4 {[%clk 0:02:47]}  f5 {[%clk 0:02:42]} 13. Bh6 {[%clk 0:02:42]}  Ba6 {[%clk 0:01:55]} 14. Bxg7 {[%clk 0:02:32]}  Qxg7 {[%clk 0:01:56]} 15. b3 {[%clk 0:02:15]}  Rad8 {[%clk 0:01:52]} 16. Ng5 {[%clk 0:02:03]}  Rf6 {[%clk 0:01:33]} 17. O-O-O {[%clk 0:01:57]}  h6 {[%clk 0:01:03]} 18. Nf3 {[%clk 0:01:57]}  f4 {[%clk 0:01:03]} 19. Kb1 {[%clk 0:01:48]}  Rff8 {[%clk 0:00:59]} 20. Qc3 {[%clk 0:01:47]}  Rfe8 {[%clk 0:00:53]} 21. g4 {[%clk 0:01:43]}  Qe7 {[%clk 0:00:44]} 22. Rh2 {[%clk 0:01:04]}  b5 {[%clk 0:00:43]} 23. Nb2 {[%clk 0:01:02]}  Qd6 {[%clk 0:00:29]} 24. Qa5 {[%clk 0:01:01]}  Nb8 {[%clk 0:00:27]} 25. c4 {[%clk 0:00:59]}  b4 {[%clk 0:00:23]} 26. Rhh1 {[%clk 0:00:53]}  Rd7 {[%clk 0:00:20]} 27. Rd2 {[%clk 0:00:53]}  Rb7 {[%clk 0:00:19]} 28. h5 {[%clk 0:00:53]}  g5 {[%clk 0:00:18]} 29. Ne1 {[%clk 0:00:50]}  Rb6 {[%clk 0:00:18]} 30. Nc2 {[%clk 0:00:50]}  Bc8 {[%clk 0:00:16]} 31. d4 {[%clk 0:00:36]}  exd4 {[%clk 0:00:14]} 32. Rxd4 {[%clk 0:00:28]}  cxd4 {[%clk 0:00:13]} 33. c5 {[%clk 0:00:28]}  Qe5 {[%clk 0:00:11]} 34. Nc4 {[%clk 0:00:29]}  Qxe4 {[%clk 0:00:11]} 35. Re1 {[%clk 0:00:29]}  Qxe1+ {[%clk 0:00:07]} 36. Nxe1 {[%clk 0:00:30]}  Rxe1+ {[%clk 0:00:04]} 37. Kc2 {[%clk 0:00:31]}  Re2+ {[%clk 0:00:03]} 38. Kd3 {[%clk 0:00:30]}  Re8 {[%clk 0:00:03]} 39. cxb6 {[%clk 0:00:30]}  axb6 {[%clk 0:00:04]} 40. Qxb6 {[%clk 0:00:29]}  Bxg4 {[%clk 0:00:04]} 41. Nd6 {[%clk 0:00:29]}  Nd7 {[%clk 0:00:03]} 42. Qxd4 {[%clk 0:00:23]}  Ne5+ {[%clk 0:00:03]} 43. Kc2 {[%clk 0:00:24]}  Re6 {[%clk 0:00:02]} 44. Ne4 {[%clk 0:00:24]}  Bf5 {[%clk 0:00:02]} 45. Kb2 {[%clk 0:00:24]}  Nf3 {[%clk 0:00:02]} 46. Qd8+ {[%clk 0:00:24]}  Kg7 {[%clk 0:00:03]} 47. Qc7+ {[%clk 0:00:23]}  Kg8 {[%clk 0:00:03]} 48. Qd8+ {[%clk 0:00:19]}  Kg7 {[%clk 0:00:03]} 49. Qd7+ {[%clk 0:00:18]}  Kf8 {[%clk 0:00:03]} 50. Qd8+ {[%clk 0:00:16]}  Kg7 {[%clk 0:00:03]} 1/2-1/2


[Site "https://www.chess.com"]

[Event "Titled Tuesday Blitz July 4 Early 2023"]
[White "Vovk, Orest"]
[Black "Kramnik, Vladimir"]
[WhiteFideId "14113490"]
[BlackFideId "4101588"]
[WhiteElo "2607"]
[BlackElo "2993"]
[Result "0-1"]
[Round "2"]
[TimeControl "180+2"]
[Date "2023.07.04"]
[WhiteClock "0:00:00"]
[BlackClock "0:00:20"]
[Board "15"]

1. g4 {[%clk 0:02:56]}  d5 {[%clk 0:02:59]} 2. Bg2 {[%clk 0:02:54]}  c6 {[%clk 0:02:58]} 3. h3 {[%clk 0:02:54]}  e5 {[%clk 0:02:58]} 4. d4 {[%clk 0:02:54]}  e4 {[%clk 0:02:54]} 5. c4 {[%clk 0:02:55]}  h5 {[%clk 0:02:52]} 6. Nc3 {[%clk 0:02:55]}  hxg4 {[%clk 0:02:49]} 7. cxd5 {[%clk 0:02:53]}  cxd5 {[%clk 0:02:47]} 8. Qb3 {[%clk 0:02:53]}  gxh3 {[%clk 0:02:42]} 9. Bxh3 {[%clk 0:02:52]}  Bxh3 {[%clk 0:02:30]} 10. Rxh3 {[%clk 0:02:51]}  Rxh3 {[%clk 0:02:29]} 11. Nxh3 {[%clk 0:02:52]}  Nc6 {[%clk 0:02:26]} 12. Qxb7 {[%clk 0:02:34]}  Nb4 {[%clk 0:02:15]} 13. Qb5+ {[%clk 0:01:54]}  Qd7 {[%clk 0:02:12]} 14. Qxd7+ {[%clk 0:01:53]}  Kxd7 {[%clk 0:02:12]} 15. Kd1 {[%clk 0:01:53]}  Ne7 {[%clk 0:02:05]} 16. a3 {[%clk 0:01:33]}  Nbc6 {[%clk 0:02:03]} 17. e3 {[%clk 0:01:04]}  Na5 {[%clk 0:01:54]} 18. Nf4 {[%clk 0:00:56]}  Nb3 {[%clk 0:01:44]} 19. Rb1 {[%clk 0:00:54]}  Kc6 {[%clk 0:01:41]} 20. Kc2 {[%clk 0:00:52]}  Rb8 {[%clk 0:01:35]} 21. Bd2 {[%clk 0:00:46]}  g5 {[%clk 0:01:34]} 22. Nh5 {[%clk 0:00:44]}  f5 {[%clk 0:01:27]} 23. Na2 {[%clk 0:00:42]}  Nxd2 {[%clk 0:01:22]} 24. Kxd2 {[%clk 0:00:42]}  Ng6 {[%clk 0:01:19]} 25. b4 {[%clk 0:00:29]}  Be7 {[%clk 0:01:13]} 26. Ng7 {[%clk 0:00:25]}  Nh4 {[%clk 0:01:10]} 27. Ne6 {[%clk 0:00:15]}  Nf3+ {[%clk 0:00:52]} 28. Ke2 {[%clk 0:00:15]}  Rh8 {[%clk 0:00:50]} 29. Rc1+ {[%clk 0:00:11]}  Kd7 {[%clk 0:00:45]} 30. Nc5+ {[%clk 0:00:10]}  Bxc5 {[%clk 0:00:44]} 31. Rxc5 {[%clk 0:00:09]}  g4 {[%clk 0:00:38]} 32. Rxd5+ {[%clk 0:00:04]}  Ke6 {[%clk 0:00:37]} 33. Rc5 {[%clk 0:00:04]}  g3 {[%clk 0:00:36]} 34. fxg3 {[%clk 0:00:03]}  Rh2+ {[%clk 0:00:35]} 35. Kf1 {[%clk 0:00:04]}  Rxa2 {[%clk 0:00:35]} 36. Ra5 {[%clk 0:00:04]}  Nd2+ {[%clk 0:00:32]} 37. Kg1 {[%clk 0:00:04]}  Nc4 {[%clk 0:00:32]} 38. Ra6+ {[%clk 0:00:04]}  Kd5 {[%clk 0:00:31]} 39. Rxa7 {[%clk 0:00:05]}  Nxe3 {[%clk 0:00:30]} 40. b5 {[%clk 0:00:05]}  Rg2+ {[%clk 0:00:30]} 41. Kh1 {[%clk 0:00:04]}  Rxg3 {[%clk 0:00:25]} 42. b6 {[%clk 0:00:04]}  Kc6 {[%clk 0:00:22]} 43. b7 {[%clk 0:00:03]}  Kc7 {[%clk 0:00:22]} 44. a4 {[%clk 0:00:02]}  f4 {[%clk 0:00:21]} 45. a5 {[%clk 0:00:02]}  f3 {[%clk 0:00:20]} 46. a6 {[%clk 0:00:00]}  f2 {[%clk 0:00:20]} 0-1


[Site "https://www.chess.com"]